fUSD/lending_fUSD_20251017
["ID","MTS","AMOUNT","RATE_DAILY","PERIOD"]
[391696007,1760731853825,-500.0,0.0004537,2]
[391696008,1760731853835,-500.0,0.0004537,2]
[391696009,1760731853844,-500.0,0.0004537,2]
[391696010,1760731853854,-500.0,0.0004537,2]
[391696011,1760731853864,-743.0,0.0004537,2]
[391696012,1760731853873,-500.0,0.0004537,2]
[391696013,1760731853883,-150.0,0.00045371,30]
[391696014,1760731853893,-150.0,0.0004539,30]
[391696015,1760731853903,-150.0,0.00045392,30]
[391696016,1760731853912,-173.00126746,0.000454,2]
[391696017,1760731853922,-721.82780824,0.000454,15]
[391696018,1760731853932,-211.21366109,0.000454,2]
[391696019,1760731853942,-150.0,0.00045405,30]
[391696020,1760731853952,-150.0,0.00045406,30]
[391696021,1760731853961,-233.00361513,0.00045413,30]
[391696022,1760731853971,-500.0,0.00045424,2]
[391696023,1760731853980,-500.0,0.00045424,2]
[391696024,1760731853990,-574.0,0.00045424,2]
[391696025,1760731853999,-150.0,0.00045424,2]
[391696026,1760731854009,-209.80207027,0.00045424,2]
[391696027,1760731854018,-500.0,0.00045424,2]
[391696028,1760731854027,-500.0,0.00045424,2]
[391696029,1760731854036,-500.0,0.00045424,2]
[391696030,1760731854045,-500.0,0.00045424,2]
[391696031,1760731854055,-360.07321422,0.00045424,2]
[391696032,1760731854067,-743.0,0.00045424,2]
[391696033,1760731854076,-500.0,0.00045424,2]
[391696034,1760731854085,-324524.55491277,0.00045444,30]
[391696035,1760731854234,-358.262448,0.00045444,30]
[391696036,1760731854247,-327.99999979,0.00045444,30]
[391696037,1760731854259,-2362.52447092,0.00045444,30]
[391696038,1760731854270,-1540.0,0.00045444,30]
[391696039,1760731854436,-263.46574322,0.00043835,120]
[391696040,1760731854452,-236.53425678,0.00043835,120]
[391696041,1760731854461,-500.0,0.00044109,120]
[391696042,1760731854471,-250.0,0.00044999,120]
[391696043,1760731854480,-250.0,0.00044999,120]
[391696044,1760731854489,-250.0,0.00044999,120]
[391696045,1760731854498,-250.0,0.00044999,120]
[391696046,1760731854507,-250.0,0.00044999,120]
[391696047,1760731854516,-250.0,0.00044999,120]
[391696048,1760731854526,-250.0,0.00044999,120]
[391696049,1760731854535,-250.0,0.00044999,120]
[391696050,1760731854546,-1769.29234754,0.00045,120]
[391696051,1760731854555,-50990.33993568,0.00045444,30]
[391696052,1760731854566,-2012.13925298,0.00045444,30]
[391696053,1760731854581,-860.109254,0.00045444,30]
[391696054,1760731854834,-153.0,0.00034411,2]
[391696055,1760731854844,-153.0,0.00034411,2]
[391696056,1760731854853,-153.0,0.00034411,2]
[391696057,1760731854863,-153.0,0.00034411,2]
[391696058,1760731854872,-2546.0,0.00036694,2]
[391696059,1760731854881,-2546.0,0.00039694,2]
[391696060,1760731854891,-5207.98835836,0.00040352,15]
[391696061,1760731854899,-192.70964164,0.00042694,2]
[391696062,1760731854918,-624.91620015,0.00042694,2]
[391696063,1760731854929,-377.5199998,0.00042694,2]
[391696064,1760731854941,-1350.85415841,0.00042694,2]
[391696065,1760731854951,-500.0,0.00043835,120]
[391696066,1760731854959,-500.0,0.00043835,120]
[391696067,1760731854968,-250.0,0.00044999,120]
[391696068,1760731854977,-250.0,0.00044999,120]
[391696069,1760731854987,-250.0,0.00044999,120]
[391696070,1760731854996,-250.0,0.00044999,120]
[391696071,1760731855005,-250.0,0.00044999,120]
[391696072,1760731855015,-11050.34584159,0.00045444,30]
[391696082,1760731962146,150.0,0.00032177,30]
[391696110,1760732827544,500.0,0.00032219,30]
[391696161,1760732927194,196.65,0.00032219,31]
[391696176,1760733032066,-349.3,0.00013699,2]
[391696177,1760733032076,-176.25,0.00013699,2]
[391696178,1760733032086,-319.15594326,0.00014295,2]
[391696180,1760733032096,-474.674134,0.00014588,2]
[391696182,1760733032105,-2751.0,0.00014662,2]
[391696184,1760733032116,-400.0,0.000147,5]
[391696186,1760733032126,-20.00902127,0.00014769,3]
[391696187,1760733032142,-289.96440231,0.00014769,3]
[391696188,1760733032154,-356.02657642,0.00014769,3]
[391696189,1760733032163,-649.19577694,0.000148,5]
[391696190,1760733032187,-150.80422306,0.000148,5]
[391696191,1760733032196,-1200.0,0.00014899,2]
[391696192,1760733032206,-1200.0,0.000149,5]
[391696193,1760733032215,-459.7094346,0.000149,2]
[391696194,1760733032226,-57061.42171161,0.000149,2]
[391696195,1760733032235,-281.63215941,0.000149,2]
[391696196,1760733032245,-173.00126746,0.000149,2]
[391696197,1760733032254,-1852.42,0.00014957,2]
[391696198,1760733032263,-300.0,0.00014965,2]
[391696199,1760733032273,-300.0,0.00014965,2]
[391696200,1760733032283,-151.94049648,0.00014967,2]
[391696201,1760733032292,-500.0,0.00014973,2]
[391696202,1760733032302,-500.0,0.00014973,2]
[391696203,1760733032312,-500.0,0.00014973,2]
[391696204,1760733032321,-500.0,0.00014973,2]
[391696205,1760733032331,-500.0,0.00014973,2]
[391696206,1760733032341,-500.0,0.00014973,2]
[391696207,1760733032351,-364.10864629,0.00014973,2]
[391696209,1760733032360,-501.49068223,0.00014973,2]
[391696211,1760733032369,-151.0,0.00014997,2]
[391696212,1760733032379,-150.0,0.00014998,2]
[391696213,1760733032388,-1158.82100279,0.00014999,5]
[391696214,1760733032398,-500.0,0.00014999,2]
[391696215,1760733032408,-500.0,0.00014999,2]
[391696217,1760733032417,-500.0,0.00014999,2]
[391696219,1760733032427,-500.0,0.00014999,2]
[391696221,1760733032436,-500.0,0.00014999,2]
[391696223,1760733032445,-500.0,0.00014999,2]
[391696225,1760733032454,-500.0,0.00014999,2]
[391696227,1760733032464,-500.0,0.00014999,2]
[391696229,1760733032473,-543.28476384,0.00014999,2]
[391696231,1760733032483,-500.0,0.00014999,2]
[391696233,1760733032493,-500.0,0.00014999,2]
[391696236,1760733032504,-615.92052931,0.00014999,2]
[391696238,1760733032514,-500.0,0.00014999,2]
[391696240,1760733032524,-500.0,0.00014999,2]
[391696242,1760733032537,-500.0,0.00014999,2]
[391696244,1760733032547,-500.0,0.00014999,2]
[391696246,1760733032556,-500.0,0.00014999,2]
[391696248,1760733032565,-500.0,0.00014999,2]
[391696250,1760733032576,-234.61002656,0.00014999,2]
[391696252,1760733032585,-500.0,0.00014999,2]
[391696254,1760733032595,-500.0,0.00014999,2]
[391696256,1760733032604,-500.0,0.00014999,2]
[391696258,1760733032614,-666.0,0.00014999,2]
[391696260,1760733032624,-21406.9154974,0.00015,2]
[391696261,1760733032635,-3177.20499516,0.00015,2]
[391696263,1760733032647,-1391.34623035,0.00015,2]
[391696264,1760733032658,-1080.64373057,0.00015,2]
[391696265,1760733032669,-964.8307927,0.00015,2]
[391696266,1760733032735,-500.0,0.00014999,2]
[391696267,1760733032745,-317.85383143,0.00014999,2]
[391696268,1760733032754,-500.0,0.00014999,2]
[391696269,1760733032763,-128.20616857,0.00015,2]
[391696270,1760733032775,-1368.50696115,0.00015,2]
[391696271,1760733032879,-485.84247292,0.00014999,2]
[391696272,1760733032888,-211.44954498,0.00014999,2]
[391696273,1760733032897,-500.0,0.00014999,2]
[391696274,1760733032907,-740.96452131,0.00015,2]
[391696275,1760733032918,-8261.15841912,0.00015,2]
[391696276,1760733038216,-350.0,0.00014999,2]
[391696277,1760733038226,-20.53,0.00015,2]
[391696278,1760733038251,-544.38170658,0.00015,2]
[391696279,1760733038262,-4049.39713611,0.00015,2]
[391696280,1760733038274,-451.15504761,0.00015,2]
[391696281,1760733038285,-882.6808005,0.00015,2]
[391696282,1760733038296,-13124.0815016,0.00015,2]
[391696284,1760733038308,-5516.50240046,0.00015,2]
[391696286,1760733038322,-716.4438225,0.00015,2]
[391696288,1760733038335,-2366679.15548195,0.00015,2]
[391696290,1760733038344,-7465801.88733721,0.00015,2]
[391696292,1760733038354,-23157.2743119,0.00015,2]
[391696294,1760733038364,-160.0,0.00015066,2]
[391696296,1760733038373,-568.0059748,0.00015068,3]
[391696298,1760733038382,-195.0,0.00015068,2]
[391696300,1760733038392,-302.47315593,0.00015068,2]
[391696302,1760733038401,-300.0,0.00015068,2]
[391696304,1760733038411,-2500.0,0.00015068,2]
[391696306,1760733038420,-2176.74442359,0.00015068,2]
[391696308,1760733038430,-1517.64,0.000153,2]
[391696310,1760733038439,-11306.77536906,0.000154,2]
[391696312,1760733038448,-501.75073774,0.000154,2]
[391696314,1760733038457,-1000.0,0.00015521,2]
[391696316,1760733038466,-1000.0,0.00015521,2]
[391696318,1760733038475,-1500.0,0.00016068,2]
[391696320,1760733038486,-1500.0,0.00016068,2]
[391696322,1760733038495,-255.0,0.00016123,2]
[391696325,1760733038504,-10000.01113981,0.000162,5]
[391696328,1760733038513,-4659.90205636,0.0001627,2]
[391696331,1760733038523,-420.0,0.00016379,2]
[391696334,1760733038535,-420.0,0.00016379,2]
[391696337,1760733038545,-1680.0,0.00016389,2]
[391696339,1760733038554,-500.0,0.00016438,2]
[391696341,1760733038563,-2000.0,0.00016616,2]
[391696343,1760733038572,-2000.0,0.00016616,2]
[391696345,1760733038583,-4500.0,0.00017,7]
[391696347,1760733038592,-250.0,0.00017,2]
[391696349,1760733038603,-2000.0,0.00017164,2]
[391696351,1760733038612,-2500.0,0.00017164,2]
[391696353,1760733038622,-433.0,0.00017338,2]
[391696355,1760733038631,-1000.53672237,0.00017534,2]
[391696357,1760733038640,-2000.0,0.00017712,2]
[391696359,1760733038649,-527.0,0.00017926,2]
[391696361,1760733038658,-300.0,0.00017999,2]
[391696363,1760733038667,-300.0,0.00017999,2]
[391696364,1760733038676,-132638.19510029,0.00018,2]
[391696367,1760733038685,-1175.86919055,0.00018,2]
[391696368,1760733038694,-2351.0,0.00018028,2]
[391696370,1760733038704,-736.0,0.00018628,2]
[391696372,1760733038712,-150.02,0.000188,2]
[391696374,1760733038722,-150.02,0.000188,2]
[391696376,1760733038731,-150.02,0.000188,2]
[391696378,1760733038740,-150.02,0.000188,2]
[391696380,1760733038749,-150.02,0.000188,2]
[391696382,1760733038758,-150.02,0.000188,2]
[391696384,1760733038767,-150.02,0.000188,2]
[391696386,1760733038777,-150.02,0.000188,2]
[391696388,1760733038786,-150.02,0.000188,2]
[391696390,1760733038795,-150.02,0.000188,2]
[391696392,1760733038805,-150.02,0.000188,2]
[391696394,1760733038814,-150.02,0.000188,2]
[391696396,1760733038823,-150.02,0.000188,2]
[391696398,1760733038833,-150.02,0.000188,2]
[391696400,1760733038842,-150.02,0.000188,2]
[391696402,1760733038852,-150.02,0.000188,2]
[391696404,1760733038861,-150.02,0.000188,2]
[391696406,1760733038870,-150.02,0.000188,2]
[391696408,1760733038879,-150.02,0.000188,2]
[391696410,1760733038888,-150.02,0.000188,2]
[391696412,1760733038898,-150.02,0.000188,2]
[391696414,1760733038908,-150.02,0.000188,2]
[391696416,1760733038917,-150.02,0.000188,2]
[391696418,1760733038927,-150.02,0.000188,2]
[391696420,1760733038936,-150.02,0.000188,2]
[391696422,1760733038946,-150.02,0.000188,2]
[391696424,1760733038955,-150.02,0.000188,2]
[391696427,1760733038968,-150.02,0.000188,2]
[391696428,1760733038977,-150.02,0.000188,2]
[391696431,1760733038987,-150.02,0.000188,2]
[391696433,1760733038997,-150.02,0.000188,2]
[391696434,1760733039006,-150.02,0.000188,2]
[391696437,1760733039016,-150.02,0.000188,2]
[391696438,1760733039027,-150.02,0.000188,2]
[391696440,1760733039036,-150.02,0.000188,2]
[391696442,1760733039046,-150.02,0.000188,2]
[391696444,1760733039055,-150.02,0.000188,2]
[391696446,1760733039064,-150.02,0.000188,2]
[391696448,1760733039074,-150.02,0.000188,2]
[391696450,1760733039086,-150.02,0.000188,2]
[391696452,1760733039096,-150.02,0.000188,2]
[391696454,1760733039107,-150.02,0.000188,2]
[391696456,1760733039117,-150.02,0.000188,2]
[391696458,1760733039127,-150.02,0.000188,2]
[391696460,1760733039136,-150.02,0.000188,2]
[391696462,1760733039146,-150.02,0.000188,2]
[391696464,1760733039156,-150.02,0.000188,2]
[391696466,1760733039167,-150.02,0.000188,2]
[391696468,1760733039177,-150.02,0.000188,2]
[391696470,1760733039187,-150.02,0.000188,2]
[391696483,1760733039385,-150.02,0.000188,2]
[391696486,1760733039404,-150.02,0.000188,2]
[391696488,1760733039413,-150.02,0.000188,2]
[391696490,1760733039423,-150.02,0.000188,2]
[391696492,1760733039432,-150.02,0.000188,2]
[391696494,1760733039441,-150.02,0.000188,2]
[391696496,1760733039451,-150.02,0.000188,2]
[391696498,1760733039460,-150.02,0.000188,2]
[391696500,1760733039470,-150.02,0.000188,2]
[391696502,1760733039479,-150.02,0.000188,2]
[391696504,1760733039488,-150.02,0.000188,2]
[391696506,1760733039497,-150.02,0.000188,2]
[391696508,1760733039506,-150.02,0.000188,2]
[391696510,1760733039515,-150.02,0.000188,2]
[391696512,1760733039524,-150.02,0.000188,2]
[391696514,1760733039537,-150.02,0.000188,2]
[391696516,1760733039547,-150.02,0.000188,2]
[391696518,1760733039556,-150.02,0.000188,2]
[391696520,1760733039566,-150.02,0.000188,2]
[391696522,1760733039575,-150.02,0.000188,2]
[391696524,1760733039589,-150.02,0.000188,2]
[391696526,1760733039598,-150.02,0.000188,2]
[391696528,1760733039607,-150.02,0.000188,2]
[391696530,1760733039617,-150.02,0.000188,2]
[391696532,1760733039628,-150.02,0.000188,2]
[391696534,1760733039637,-150.02,0.000188,2]
[391696536,1760733039648,-150.02,0.000188,2]
[391696538,1760733039657,-150.02,0.000188,2]
[391696540,1760733039667,-150.02,0.000188,2]
[391696542,1760733039676,-150.02,0.000188,2]
[391696544,1760733039685,-150.02,0.000188,2]
[391696546,1760733039696,-150.02,0.000188,2]
[391696548,1760733039705,-150.02,0.000188,2]
[391696550,1760733039715,-150.02,0.000188,2]
[391696552,1760733039724,-150.02,0.000188,2]
[391696554,1760733039734,-150.02,0.000188,2]
[391696556,1760733039743,-150.02,0.000188,2]
[391696558,1760733039752,-150.02,0.000188,2]
[391696560,1760733039761,-150.02,0.000188,2]
[391696562,1760733039770,-250.0,0.00018958,2]
[391696564,1760733039780,-23507.52528515,0.00019,2]
[391696566,1760733039789,-2809.48810736,0.00019,2]
[391696568,1760733039798,-200.0,0.00019178,2]
[391696570,1760733039808,-500.0,0.00019333,2]
[391696572,1760733039816,-172.16017549,0.00019333,2]
[391696574,1760733039825,-500.0,0.00019333,2]
[391696577,1760733039837,-348.76515838,0.00019333,2]
[391696578,1760733039847,-500.0,0.00019333,2]
[391696581,1760733039857,-170.67445687,0.00019333,2]
[391696582,1760733039866,-500.0,0.00019333,2]
[391696584,1760733039875,-459.70943458,0.00019641,2]
[391696586,1760733039884,-163.51521852,0.000198,2]
[391696588,1760733039893,-173.05570666,0.000198,2]
[391696590,1760733039903,-204.22491195,0.000198,2]
[391696592,1760733039912,-164.70484905,0.000198,2]
[391696594,1760733039924,-2131.21100906,0.000198,2]
[391696596,1760733039933,-3292.0,0.00019831,2]
[391696598,1760733039942,-400.0,0.00019863,2]
[391696600,1760733039951,-475.49624517,0.00019866,2]
[391696602,1760733039961,-1000.0,0.00019881,2]
[391696604,1760733039970,-1000.0,0.00019881,2]
[391696607,1760733039979,-514.4251423,0.00019881,2]
[391696610,1760733039988,-500.0,0.00019881,2]
[391696612,1760733039997,-198.09186119,0.000199,2]
[391696614,1760733040007,-174.95194413,0.000199,2]
[391696616,1760733040016,-1600.0,0.000199,7]
[391696617,1760733040025,-300.0,0.00019999,2]
[391696620,1760733040034,-300.0,0.00019999,2]
[391696622,1760733040043,-163.51521852,0.0002,2]
[391696625,1760733040053,-173.05570666,0.0002,2]
[391696627,1760733040061,-2131.21100906,0.0002,2]
[391696628,1760733040070,-10787.32923541,0.0002,2]
[391696630,1760733040080,-1514.95050033,0.0002,2]
[391696631,1760733040089,-25290.54772275,0.0002,2]
[391696633,1760733040098,-4643.90957737,0.0002,2]
[391696634,1760733040107,-8300.0,0.0002,4]
[391696636,1760733040116,-3950.0,0.0002,2]
[391696639,1760733040125,-40215.42551848,0.0002,2]
[391696640,1760733040134,-15805.65623738,0.0002,14]
[391696643,1760733040144,-1278.99653528,0.0002,2]
[391696644,1760733040153,-7287.27367177,0.0002,2]
[391696646,1760733040162,-1032.50516839,0.0002,2]
[391696648,1760733040171,-2829.35758789,0.0002,2]
[391696649,1760733040180,-3199.45450017,0.0002,2]
[391696651,1760733040189,-75031.75649326,0.0002,2]
[391696653,1760733040199,-8703.80016432,0.0002,2]
[391696654,1760733040208,-1000.0,0.0002,4]
[391696656,1760733040217,-485.0,0.00020022,2]
[391696658,1760733040226,-349.3,0.00020187,2]
[391696659,1760733040235,-163.51521852,0.000202,2]
[391696661,1760733040245,-173.05570666,0.000202,2]
[391696662,1760733040254,-2131.21100906,0.000202,2]
[391696664,1760733040263,-173.05570666,0.000204,2]
[391696666,1760733040272,-2131.21100906,0.000204,2]
[391696667,1760733040280,-2674.14750914,0.000204,2]
[391696669,1760733040289,-501.45384956,0.00020429,2]
[391696671,1760733040298,-1000.0,0.00020429,2]
[391696672,1760733040308,-600.0,0.00020548,2]
[391696674,1760733040317,-2131.21100906,0.000206,2]
[391696676,1760733040326,-18819.52601407,0.000207,2]
[391696677,1760733040335,-2131.21100906,0.000208,2]
[391696679,1760733040344,-31222.37119782,0.0002085,2]
[391696681,1760733040354,-2131.21100906,0.00021,2]
[391696683,1760733040364,-5806.632404,0.00021,2]
[391696684,1760733040374,-2131.21100906,0.000212,2]
[391696686,1760733040383,-800.0,0.00021233,2]
[391696688,1760733040392,-500.0,0.00021294,2]
[391696690,1760733040401,-509.70729923,0.00021294,2]
[391696691,1760733040411,-500.0,0.00021294,2]
[391696693,1760733040420,-500.0,0.00021294,2]
[391696695,1760733040429,-500.0,0.00021294,2]
[391696697,1760733040441,-562.22531569,0.00021294,2]
[391696698,1760733040451,-500.0,0.00021294,2]
[391696700,1760733040460,-500.0,0.00021294,2]
[391696702,1760733040468,-500.0,0.00021294,2]
[391696703,1760733040478,-500.0,0.00021294,2]
[391696705,1760733040487,-500.0,0.00021294,2]
[391696707,1760733040496,-500.0,0.00021294,2]
[391696709,1760733040505,-500.0,0.00021294,2]
[391696710,1760733040514,-500.0,0.00021294,2]
[391696712,1760733040523,-5348.29501828,0.0002135,2]
[391696714,1760733040537,-2131.21100906,0.000215,2]
[391696716,1760733040546,-8654.99690734,0.000215,2]
[391696717,1760733040555,-500.0,0.000216,2]
[391696719,1760733040564,-2131.21100906,0.000217,2]
[391696721,1760733040574,-4609.0,0.00021814,2]
[391696723,1760733040584,-1001.34475597,0.00021842,2]
[391696724,1760733040594,-1000.0,0.00021842,2]
[391696726,1760733040604,-1000.0,0.00021842,2]
[391696728,1760733040614,-1143.34805477,0.00021842,2]
[391696730,1760733040623,-1000.0,0.00021842,2]
[391696731,1760733040632,-1001.33709641,0.00021842,2]
[391696733,1760733040641,-1000.0,0.00021842,2]
[391696735,1760733040650,-1000.0,0.00021842,2]
[391696737,1760733040659,-1030.35814271,0.00021842,2]
[391696738,1760733040668,-624.85587665,0.00021842,2]
[391696740,1760733040677,-1000.0,0.00021842,2]
[391696742,1760733040686,-500.0,0.00021842,2]
[391696744,1760733040696,-1000.0,0.00021918,2]
[391696745,1760733040704,-20442.34660286,0.00022,4]
[391696747,1760733040714,-500.0,0.00022148,2]
[391696749,1760733040723,-364.29764002,0.0002239,2]
[391696750,1760733040732,-1500.0,0.0002239,2]
[391696752,1760733040742,-500.0,0.0002239,2]
[391696754,1760733040751,-1200.0,0.00022603,2]
[391696756,1760733040760,-500.0,0.0002285,2]
[391696758,1760733040769,-500.0,0.0002285,2]
[391696759,1760733040778,-500.0,0.0002285,2]
[391696761,1760733040787,-500.0,0.0002285,2]
[391696763,1760733040796,-500.0,0.0002285,2]
[391696764,1760733040804,-340.0,0.0002285,2]
[391696766,1760733040814,-151.94049648,0.0002295,2]
[391696768,1760733040823,-5568.41,0.00023,7]
[391696770,1760733040832,-1400.0,0.00023288,2]
[391696771,1760733040841,-218.25342237,0.00023311,2]
[391696773,1760733040851,-218.25342237,0.00023311,2]
[391696775,1760733040861,-1000.0,0.00023398,2]
[391696777,1760733040871,-1000.0,0.00023398,2]
[391696778,1760733040881,-1000.0,0.00023398,2]
[391696780,1760733040890,-1000.0,0.00023398,2]
[391696782,1760733040899,-919.38985717,0.00023398,2]
[391696784,1760733040908,-3295.03621571,0.00023456,2]
[391696786,1760733040918,-1500.0,0.00023946,2]
[391696788,1760733040927,-1000.0,0.00023946,2]
[391696790,1760733040936,-951.24017531,0.00023946,2]
[391696791,1760733040945,-200.0,0.00023973,2]
[391696792,1760733040954,-499.0,0.00023995,2]
[391696793,1760733040963,-300.0,0.00023999,2]
[391696794,1760733040971,-300.0,0.00023999,2]
[391696795,1760733040980,-95963.2637978,0.00024,2]
[391696796,1760733040989,-461.97165921,0.00024,2]
[391696797,1760733040998,-390.296706,0.00024,2]
[391696798,1760733041007,-459.70943458,0.00024381,2]
[391696799,1760733041016,-151.0,0.00024797,7]
[391696800,1760733041024,-300.0,0.00024799,10]
[391696801,1760733041033,-387.85351644,0.00024799,10]
[391696802,1760733041042,-422051.221648,0.000248,3]
[391696803,1760733041051,-300.0,0.00024899,10]
[391696804,1760733041060,-363645.53064,0.000249,3]
[391696805,1760733041069,-151.0,0.000249,7]
[391696806,1760733041078,-151.0,0.000249,7]
[391696808,1760733041089,-151.0,0.000249,7]
[391696809,1760733041097,-151.0,0.000249,7]
[391696811,1760733041106,-151.0,0.000249,7]
[391696813,1760733041116,-151.0,0.000249,7]
[391696815,1760733041125,-151.0,0.000249,7]
[391696817,1760733041134,-151.0,0.000249,7]
[391696819,1760733041143,-151.0,0.000249,7]
[391696821,1760733041152,-151.0,0.000249,7]
[391696823,1760733041161,-151.0,0.000249,7]
[391696825,1760733041171,-151.0,0.000249,7]
[391696827,1760733041179,-262.18,0.000249,7]
[391696829,1760733041188,-154.162599,0.000249,7]
[391696831,1760733041198,-201.739994,0.000249,7]
[391696833,1760733041207,-151.0,0.000249,7]
[391696835,1760733041217,-201.739994,0.000249,7]
[391696837,1760733041227,-151.0,0.000249,7]
[391696839,1760733041236,-201.739994,0.000249,7]
[391696841,1760733041245,-887.215651,0.000249,7]
[391696843,1760733041255,-151.0,0.000249,7]
[391696845,1760733041263,-201.739994,0.000249,7]
[391696847,1760733041272,-887.215651,0.000249,7]
[391696849,1760733041281,-887.215651,0.000249,7]
[391696851,1760733041290,-151.0,0.000249,7]
[391696853,1760733041299,-887.215651,0.000249,7]
[391696855,1760733041308,-151.0,0.000249,7]
[391696857,1760733041317,-151.0,0.000249,7]
[391696859,1760733041327,-151.0,0.000249,7]
[391696861,1760733041336,-377.028455,0.000249,7]
[391696863,1760733041345,-151.0,0.000249,7]
[391696865,1760733041354,-151.0,0.000249,7]
[391696867,1760733041363,-280.345504,0.000249,7]
[391696869,1760733041372,-377.028455,0.000249,7]
[391696871,1760733041381,-151.0,0.000249,7]
[391696873,1760733041391,-280.345504,0.000249,7]
[391696875,1760733041399,-377.028455,0.000249,7]
[391696877,1760733041409,-280.345504,0.000249,7]
[391696879,1760733041418,-377.028455,0.000249,7]
[391696881,1760733041427,-280.345504,0.000249,7]
[391696883,1760733041436,-151.0,0.000249,7]
[391696885,1760733041445,-151.0,0.000249,7]
[391696887,1760733041453,-151.0,0.000249,7]
[391696889,1760733041463,-171.817558,0.000249,7]
[391696891,1760733041472,-151.0,0.000249,7]
[391696893,1760733041481,-151.0,0.000249,7]
[391696895,1760733041492,-151.0,0.000249,7]
[391696897,1760733041502,-177.804928,0.000249,7]
[391696899,1760733041511,-177.804928,0.000249,7]
[391696901,1760733041519,-670.971821,0.000249,7]
[391696903,1760733041530,-177.804928,0.000249,7]
[391696905,1760733041542,-670.971821,0.000249,7]
[391696907,1760733041551,-177.804928,0.000249,7]
[391696909,1760733041560,-151.0,0.000249,7]
[391696911,1760733041568,-670.971821,0.000249,7]
[391696913,1760733041577,-151.0,0.000249,7]
[391696915,1760733041587,-670.971821,0.000249,7]
[391696917,1760733041596,-154.421392,0.000249,7]
[391696919,1760733041605,-154.421392,0.000249,7]
[391696921,1760733041614,-680.599913,0.000249,7]
[391696923,1760733041623,-151.0,0.000249,7]
[391696925,1760733041632,-240.774713,0.000249,7]
[391696927,1760733041643,-154.421392,0.000249,7]
[391696929,1760733041652,-680.599913,0.000249,7]
[391696932,1760733041662,-151.0,0.000249,7]
[391696933,1760733041671,-151.0,0.000249,7]
[391696935,1760733041680,-283.832494,0.000249,7]
[391696937,1760733041689,-154.421392,0.000249,7]
[391696940,1760733041699,-240.774713,0.000249,7]
[391696941,1760733041707,-680.599913,0.000249,7]
[391696943,1760733041716,-151.0,0.000249,7]
[391696945,1760733041725,-283.832494,0.000249,7]
[391696947,1760733041735,-240.774713,0.000249,7]
[391696949,1760733041744,-680.599913,0.000249,7]
[391696952,1760733041754,-193.9679,0.000249,7]
[391696953,1760733041763,-151.0,0.000249,7]
[391696955,1760733041772,-240.774713,0.000249,7]
[391696957,1760733041783,-193.9679,0.000249,7]
[391696960,1760733041792,-283.832494,0.000249,7]
[391696961,1760733041802,-151.0,0.000249,7]
[391696963,1760733041811,-193.9679,0.000249,7]
[391696965,1760733041820,-283.832494,0.000249,7]
[391696967,1760733041829,-151.0,0.000249,7]